[Event "Titled Tuesday Blitz November 14 Late 2023"]
[White "Guerra Tulcan, Lenin"]
[Black "Henriquez Villagra, Cristobal"]
[WhiteFideId "3601382"]
[BlackFideId "3409350"]
[WhiteElo "2601"]
[BlackElo "2874"]
[Result "1/2-1/2"]
[Round "3"]
[TimeControl "180+1"]
[Date "2023.11.14"]
[WhiteClock "0:00:11"]
[BlackClock "0:00:08"]
[Board "25"]

1. e4 {[%clk 0:02:59]}  d6 {[%clk 0:02:57]} 2. d4 {[%clk 0:02:58]}  Nf6 {[%clk 0:02:57]} 3. Nc3 {[%clk 0:02:58]}  e5 {[%clk 0:02:58]} 4. Nf3 {[%clk 0:02:57]}  Nbd7 {[%clk 0:02:57]} 5. Be2 {[%clk 0:02:57]}  Be7 {[%clk 0:02:58]} 6. O-O {[%clk 0:02:56]}  O-O {[%clk 0:02:58]} 7. h3 {[%clk 0:02:56]}  Re8 {[%clk 0:02:56]} 8. dxe5 {[%clk 0:02:53]}  Nxe5 {[%clk 0:02:48]} 9. Nxe5 {[%clk 0:02:52]}  dxe5 {[%clk 0:02:49]} 10. Bg5 {[%clk 0:02:44]}  c6 {[%clk 0:02:49]} 11. Qxd8 {[%clk 0:02:41]}  Bxd8 {[%clk 0:02:50]} 12. Rfd1 {[%clk 0:02:37]}  Be6 {[%clk 0:02:46]} 13. Bxf6 {[%clk 0:02:21]}  Bxf6 {[%clk 0:02:47]} 14. Bg4 {[%clk 0:02:21]}  Bxg4 {[%clk 0:02:00]} 15. hxg4 {[%clk 0:02:22]}  Re7 {[%clk 0:02:00]} 16. Rd3 {[%clk 0:02:14]}  Kf8 {[%clk 0:02:00]} 17. Rad1 {[%clk 0:02:11]}  Ke8 {[%clk 0:02:00]} 18. Ne2 {[%clk 0:02:08]}  Rc7 {[%clk 0:01:59]} 19. g3 {[%clk 0:02:02]}  Rd8 {[%clk 0:01:58]} 20. c3 {[%clk 0:02:00]}  Rxd3 {[%clk 0:01:56]} 21. Rxd3 {[%clk 0:02:01]}  b5 {[%clk 0:01:57]} 22. f4 {[%clk 0:01:58]}  h6 {[%clk 0:01:52]} 23. Kf2 {[%clk 0:01:57]}  a5 {[%clk 0:01:48]} 24. Ng1 {[%clk 0:01:55]}  Be7 {[%clk 0:01:41]} 25. Nf3 {[%clk 0:01:53]}  exf4 {[%clk 0:01:40]} 26. gxf4 {[%clk 0:01:54]}  g6 {[%clk 0:01:39]} 27. e5 {[%clk 0:01:41]}  a4 {[%clk 0:01:23]} 28. Ke3 {[%clk 0:01:34]}  c5 {[%clk 0:00:58]} 29. Ke4 {[%clk 0:01:26]}  b4 {[%clk 0:00:50]} 30. c4 {[%clk 0:01:10]}  Rb7 {[%clk 0:00:43]} 31. b3 {[%clk 0:01:04]}  Ra7 {[%clk 0:00:41]} 32. f5 {[%clk 0:01:03]}  axb3 {[%clk 0:00:38]} 33. axb3 {[%clk 0:01:03]}  Ra2 {[%clk 0:00:37]} 34. fxg6 {[%clk 0:00:48]}  fxg6 {[%clk 0:00:37]} 35. e6 {[%clk 0:00:48]}  Re2+ {[%clk 0:00:33]} 36. Kd5 {[%clk 0:00:47]}  h5 {[%clk 0:00:26]} 37. gxh5 {[%clk 0:00:46]}  gxh5 {[%clk 0:00:27]} 38. Ne5 {[%clk 0:00:44]}  h4 {[%clk 0:00:27]} 39. Nc6 {[%clk 0:00:39]}  Bf8 {[%clk 0:00:19]} 40. e7 {[%clk 0:00:23]}  Bxe7 {[%clk 0:00:10]} 41. Nxe7 {[%clk 0:00:22]}  Kxe7 {[%clk 0:00:05]} 42. Kxc5 {[%clk 0:00:22]}  Re5+ {[%clk 0:00:03]} 43. Kxb4 {[%clk 0:00:21]}  Rh5 {[%clk 0:00:04]} 44. Rh3 {[%clk 0:00:21]}  Kd6 {[%clk 0:00:04]} 45. c5+ {[%clk 0:00:12]}  Kc6 {[%clk 0:00:03]} 46. Kc4 {[%clk 0:00:09]}  Rxc5+ {[%clk 0:00:03]} 47. Kd4 {[%clk 0:00:09]}  Rh5 {[%clk 0:00:04]} 48. Ke4 {[%clk 0:00:10]}  Kb5 {[%clk 0:00:05]} 49. Kf4 {[%clk 0:00:10]}  Kb4 {[%clk 0:00:05]} 50. Kg4 {[%clk 0:00:10]}  Rh8 {[%clk 0:00:06]} 51. Rxh4 {[%clk 0:00:11]}  Rxh4+ {[%clk 0:00:07]} 52. Kxh4 {[%clk 0:00:11]}  Kxb3 {[%clk 0:00:08]} 1/2-1/2


[Site "https://www.chess.com"]

[Event "Titled Tuesday Blitz November 14 Late 2023"]
[White "Taboas Rodriguez, Daniel"]
[Black "Beerdsen, Thomas"]
[WhiteFideId "2208466"]
[BlackFideId "1030108"]
[WhiteElo "2583"]
[BlackElo "2872"]
[Result "1-0"]
[Round "3"]
[TimeControl "180+1"]
[Date "2023.11.14"]
[WhiteClock "0:00:02"]
[BlackClock "0:00:11"]
[Board "26"]

1. d4 {[%clk 0:03:00]}  Nf6 {[%clk 0:02:58]} 2. Nf3 {[%clk 0:02:59]}  Nc6 {[%clk 0:02:57]} 3. d5 {[%clk 0:02:58]}  Nb4 {[%clk 0:02:58]} 4. c4 {[%clk 0:02:58]}  e6 {[%clk 0:02:57]} 5. a3 {[%clk 0:02:58]}  Na6 {[%clk 0:02:58]} 6. Nc3 {[%clk 0:02:58]}  c6 {[%clk 0:02:56]} 7. e4 {[%clk 0:02:52]}  cxd5 {[%clk 0:02:54]} 8. cxd5 {[%clk 0:02:47]}  Bc5 {[%clk 0:02:43]} 9. e5 {[%clk 0:02:34]}  Ng4 {[%clk 0:02:27]} 10. Ne4 {[%clk 0:02:34]}  Qb6 {[%clk 0:02:28]} 11. Qc2 {[%clk 0:01:51]}  exd5 {[%clk 0:01:56]} 12. Nxc5 {[%clk 0:01:48]}  Nxc5 {[%clk 0:01:50]} 13. h3 {[%clk 0:01:35]}  Nh6 {[%clk 0:01:48]} 14. Be3 {[%clk 0:01:27]}  d6 {[%clk 0:01:40]} 15. exd6 {[%clk 0:01:28]}  d4 {[%clk 0:01:34]} 16. Bxd4 {[%clk 0:01:24]}  O-O {[%clk 0:01:27]} 17. Qxc5 {[%clk 0:01:16]}  Re8+ {[%clk 0:01:26]} 18. Be2 {[%clk 0:01:16]}  Qa6 {[%clk 0:01:26]} 19. Be3 {[%clk 0:01:13]}  Qa4 {[%clk 0:01:20]} 20. Bb5 {[%clk 0:01:02]}  Qe4 {[%clk 0:01:18]} 21. Bxe8 {[%clk 0:00:50]}  Qxe8 {[%clk 0:01:19]} 22. O-O {[%clk 0:00:49]}  Nf5 {[%clk 0:01:20]} 23. Rfe1 {[%clk 0:00:47]}  Be6 {[%clk 0:01:20]} 24. Rad1 {[%clk 0:00:45]}  b6 {[%clk 0:01:18]} 25. Qe5 {[%clk 0:00:43]}  Rd8 {[%clk 0:01:12]} 26. Nd4 {[%clk 0:00:33]}  Nh4 {[%clk 0:01:11]} 27. Nxe6 {[%clk 0:00:28]}  Qc6 {[%clk 0:01:11]} 28. Nf4 {[%clk 0:00:20]}  Re8 {[%clk 0:01:04]} 29. Qd5 {[%clk 0:00:16]}  Qd7 {[%clk 0:01:03]} 30. Qg5 {[%clk 0:00:14]}  Nf5 {[%clk 0:01:03]} 31. Qg4 {[%clk 0:00:14]}  g6 {[%clk 0:01:03]} 32. Nd5 {[%clk 0:00:13]}  Qxd6 {[%clk 0:01:01]} 33. Bf4 {[%clk 0:00:10]}  Rxe1+ {[%clk 0:00:59]} 34. Rxe1 {[%clk 0:00:11]}  Qxd5 {[%clk 0:01:00]} 35. Qf3 {[%clk 0:00:10]}  Qd7 {[%clk 0:00:57]} 36. Qa8+ {[%clk 0:00:09]}  Kg7 {[%clk 0:00:57]} 37. Be5+ {[%clk 0:00:10]}  f6 {[%clk 0:00:58]} 38. Bg3 {[%clk 0:00:09]}  h5 {[%clk 0:00:57]} 39. Qe8 {[%clk 0:00:09]}  Qd4 {[%clk 0:00:57]} 40. Qe4 {[%clk 0:00:09]}  Qxb2 {[%clk 0:00:56]} 41. a4 {[%clk 0:00:08]}  h4 {[%clk 0:00:56]} 42. Bxh4 {[%clk 0:00:07]}  b5 {[%clk 0:00:53]} 43. axb5 {[%clk 0:00:07]}  Qxb5 {[%clk 0:00:54]} 44. Bg3 {[%clk 0:00:07]}  Qb6 {[%clk 0:00:54]} 45. Kh2 {[%clk 0:00:07]}  a5 {[%clk 0:00:54]} 46. Ra1 {[%clk 0:00:06]}  Qb5 {[%clk 0:00:36]} 47. Qa4 {[%clk 0:00:06]}  Qe2 {[%clk 0:00:37]} 48. Qxa5 {[%clk 0:00:06]}  Kh6 {[%clk 0:00:37]} 49. Qe1 {[%clk 0:00:05]}  Qd3 {[%clk 0:00:37]} 50. Qc1+ {[%clk 0:00:05]}  g5 {[%clk 0:00:37]} 51. Qd1 {[%clk 0:00:05]}  Qc3 {[%clk 0:00:36]} 52. Rc1 {[%clk 0:00:05]}  Qa3 {[%clk 0:00:37]} 53. Rc2 {[%clk 0:00:05]}  Kg6 {[%clk 0:00:36]} 54. Re2 {[%clk 0:00:03]}  Qa8 {[%clk 0:00:35]} 55. Qc2 {[%clk 0:00:03]}  Qd5 {[%clk 0:00:32]} 56. Qe4 {[%clk 0:00:03]}  Qb3 {[%clk 0:00:26]} 57. Rc2 {[%clk 0:00:03]}  Qb5 {[%clk 0:00:21]} 58. Rd2 {[%clk 0:00:03]}  Kh6 {[%clk 0:00:20]} 59. Rd5 {[%clk 0:00:03]}  Nxg3 {[%clk 0:00:20]} 60. fxg3 {[%clk 0:00:03]}  Qc6 {[%clk 0:00:18]} 61. Qd3 {[%clk 0:00:02]}  g4 {[%clk 0:00:18]} 62. Rd6 {[%clk 0:00:02]}  Qe8 {[%clk 0:00:15]} 63. Rxf6+ {[%clk 0:00:02]}  Kg7 {[%clk 0:00:16]} 64. Qf5 {[%clk 0:00:02]}  Qe3 {[%clk 0:00:12]} 65. Rf7+ {[%clk 0:00:01]}  Kg8 {[%clk 0:00:11]} 66. Qh7# {[%clk 0:00:02]} 1-0


[Site "https://www.chess.com"]

[Event "Titled Tuesday Blitz November 14 Late 2023"]
[White "Dragomirescu, Robin-Alexandru"]
[Black "Rustemov, Alexander"]
[WhiteFideId "1213849"]
[BlackFideId "4119002"]
[WhiteElo "2558"]
[BlackElo "2866"]
[Result "1/2-1/2"]
[Round "3"]
[TimeControl "180+1"]
[Date "2023.11.14"]
[WhiteClock "0:00:04"]
[BlackClock "0:00:07"]
[Board "27"]

1. b3 {[%clk 0:03:00]}  d5 {[%clk 0:02:59]} 2. Bb2 {[%clk 0:03:01]}  Bf5 {[%clk 0:02:59]} 3. e3 {[%clk 0:03:01]}  e6 {[%clk 0:02:59]} 4. Nf3 {[%clk 0:03:02]}  h6 {[%clk 0:02:55]} 5. c4 {[%clk 0:03:02]}  Nf6 {[%clk 0:02:54]} 6. Nc3 {[%clk 0:03:03]}  c6 {[%clk 0:02:53]} 7. Be2 {[%clk 0:02:58]}  Nbd7 {[%clk 0:02:52]} 8. O-O {[%clk 0:02:57]}  Bd6 {[%clk 0:02:53]} 9. d3 {[%clk 0:02:56]}  Qe7 {[%clk 0:02:50]} 10. Qc2 {[%clk 0:02:53]}  O-O {[%clk 0:02:48]} 11. Rac1 {[%clk 0:02:53]}  a5 {[%clk 0:02:43]} 12. Rfd1 {[%clk 0:02:53]}  Rfd8 {[%clk 0:02:39]} 13. Qb1 {[%clk 0:02:53]}  Ba3 {[%clk 0:02:32]} 14. Qa1 {[%clk 0:02:45]}  Rac8 {[%clk 0:02:18]} 15. h3 {[%clk 0:02:44]}  Bxb2 {[%clk 0:02:04]} 16. Qxb2 {[%clk 0:02:44]}  Nc5 {[%clk 0:02:04]} 17. Ne5 {[%clk 0:02:29]}  Nfd7 {[%clk 0:01:54]} 18. Nxd7 {[%clk 0:02:29]}  Nxd7 {[%clk 0:01:51]} 19. cxd5 {[%clk 0:02:13]}  exd5 {[%clk 0:01:50]} 20. d4 {[%clk 0:02:13]}  Nf6 {[%clk 0:01:48]} 21. a3 {[%clk 0:02:09]}  Ne4 {[%clk 0:01:42]} 22. b4 {[%clk 0:01:59]}  axb4 {[%clk 0:01:41]} 23. axb4 {[%clk 0:01:59]}  Rd6 {[%clk 0:01:36]} 24. Bg4 {[%clk 0:01:29]}  Bxg4 {[%clk 0:01:31]} 25. hxg4 {[%clk 0:01:30]}  Re8 {[%clk 0:01:28]} 26. b5 {[%clk 0:01:22]}  Rg6 {[%clk 0:01:28]} 27. bxc6 {[%clk 0:01:19]}  bxc6 {[%clk 0:01:27]} 28. f3 {[%clk 0:01:17]}  Nxc3 {[%clk 0:01:20]} 29. Rxc3 {[%clk 0:01:17]}  Re6 {[%clk 0:01:15]} 30. Rdd3 {[%clk 0:01:06]}  Qg5 {[%clk 0:01:12]} 31. Qc1 {[%clk 0:01:02]}  h5 {[%clk 0:01:12]} 32. gxh5 {[%clk 0:00:58]}  Qxh5 {[%clk 0:01:12]} 33. Rxc6 {[%clk 0:00:57]}  Rxc6 {[%clk 0:00:49]} 34. Qxc6 {[%clk 0:00:58]}  Re6 {[%clk 0:00:49]} 35. Qa8+ {[%clk 0:00:40]}  Kh7 {[%clk 0:00:49]} 36. Rc3 {[%clk 0:00:40]}  Qh4 {[%clk 0:00:45]} 37. Qa1 {[%clk 0:00:28]}  Rh6 {[%clk 0:00:44]} 38. Qb1+ {[%clk 0:00:17]}  g6 {[%clk 0:00:42]} 39. Rb3 {[%clk 0:00:17]}  Kg7 {[%clk 0:00:34]} 40. Rb7 {[%clk 0:00:15]}  Qh2+ {[%clk 0:00:33]} 41. Kf2 {[%clk 0:00:14]}  Rh5 {[%clk 0:00:31]} 42. Qg1 {[%clk 0:00:07]}  Qh4+ {[%clk 0:00:31]} 43. Ke2 {[%clk 0:00:06]}  Rg5 {[%clk 0:00:27]} 44. Rb2 {[%clk 0:00:04]}  Qg3 {[%clk 0:00:23]} 45. Kf1 {[%clk 0:00:04]}  Qc7 {[%clk 0:00:22]} 46. Re2 {[%clk 0:00:02]}  Qc1+ {[%clk 0:00:16]} 47. Re1 {[%clk 0:00:03]}  Qc7 {[%clk 0:00:17]} 48. Qf2 {[%clk 0:00:02]}  Rh5 {[%clk 0:00:17]} 49. g3 {[%clk 0:00:02]}  Qc4+ {[%clk 0:00:13]} 50. Kg2 {[%clk 0:00:02]}  Qc8 {[%clk 0:00:12]} 51. Rh1 {[%clk 0:00:03]}  Rg5 {[%clk 0:00:11]} 52. Rh3 {[%clk 0:00:03]}  Qf5 {[%clk 0:00:11]} 53. g4 {[%clk 0:00:03]}  Qd3 {[%clk 0:00:11]} 54. Qh4 {[%clk 0:00:04]}  Kf6 {[%clk 0:00:10]} 55. f4 {[%clk 0:00:04]}  Qe2+ {[%clk 0:00:10]} 56. Kh1 {[%clk 0:00:03]}  Qf1+ {[%clk 0:00:10]} 57. Kh2 {[%clk 0:00:03]}  Qe2+ {[%clk 0:00:10]} 58. Kh1 {[%clk 0:00:03]}  Qf1+ {[%clk 0:00:06]} 59. Kh2 {[%clk 0:00:03]}  Qe2+ {[%clk 0:00:07]} 60. Kh1 {[%clk 0:00:04]} 1/2-1/2


[Site "https://www.chess.com"]

[Event "Titled Tuesday Blitz November 14 Late 2023"]
[White "Szpar, Milosz"]
[Black "TimGrutter03"]
[WhiteFideId "1184989"]
[WhiteElo "2861"]
[BlackElo "2535"]
[Result "1-0"]
[Round "3"]
[TimeControl "180+1"]
[Date "2023.11.14"]
[WhiteClock "0:00:20"]
[BlackClock "0:00:02"]
[Board "28"]

1. Nf3 {[%clk 0:03:00]}  g6 {[%clk 0:02:59]} 2. e4 {[%clk 0:02:58]}  Bg7 {[%clk 0:02:59]} 3. d4 {[%clk 0:02:57]}  d6 {[%clk 0:03:00]} 4. c3 {[%clk 0:02:57]}  Nc6 {[%clk 0:02:58]} 5. h3 {[%clk 0:02:55]}  e5 {[%clk 0:02:57]} 6. Bb5 {[%clk 0:02:50]}  Bd7 {[%clk 0:02:52]} 7. O-O {[%clk 0:02:46]}  Nf6 {[%clk 0:02:49]} 8. Re1 {[%clk 0:02:46]}  O-O {[%clk 0:02:46]} 9. a4 {[%clk 0:02:39]}  a6 {[%clk 0:02:41]} 10. Bd3 {[%clk 0:02:35]}  exd4 {[%clk 0:02:33]} 11. cxd4 {[%clk 0:02:35]}  Nb4 {[%clk 0:02:32]} 12. Bf1 {[%clk 0:02:35]}  c5 {[%clk 0:02:14]} 13. d5 {[%clk 0:02:28]}  b5 {[%clk 0:02:09]} 14. Nc3 {[%clk 0:02:26]}  Re8 {[%clk 0:01:52]} 15. Bf4 {[%clk 0:02:09]}  Qb6 {[%clk 0:01:46]} 16. axb5 {[%clk 0:01:58]}  axb5 {[%clk 0:01:42]} 17. Rxa8 {[%clk 0:01:58]}  Rxa8 {[%clk 0:01:41]} 18. e5 {[%clk 0:01:58]}  dxe5 {[%clk 0:01:39]} 19. Nxe5 {[%clk 0:01:55]}  c4 {[%clk 0:01:25]} 20. Qf3 {[%clk 0:01:46]}  Bf5 {[%clk 0:01:04]} 21. g4 {[%clk 0:01:42]}  Nd3 {[%clk 0:00:41]} 22. Bxd3 {[%clk 0:01:33]}  Bxd3 {[%clk 0:00:40]} 23. d6 {[%clk 0:01:06]}  Rd8 {[%clk 0:00:39]} 24. Nxd3 {[%clk 0:00:57]}  cxd3 {[%clk 0:00:38]} 25. Qxd3 {[%clk 0:00:54]}  b4 {[%clk 0:00:32]} 26. Nd5 {[%clk 0:00:54]}  Nxd5 {[%clk 0:00:32]} 27. Qxd5 {[%clk 0:00:55]}  Qd4 {[%clk 0:00:12]} 28. Qxd4 {[%clk 0:00:37]}  Bxd4 {[%clk 0:00:13]} 29. b3 {[%clk 0:00:36]}  Kg7 {[%clk 0:00:10]} 30. Rd1 {[%clk 0:00:36]}  Bb6 {[%clk 0:00:03]} 31. Rd5 {[%clk 0:00:24]}  Kf6 {[%clk 0:00:01]} 32. Bg5+ {[%clk 0:00:23]}  Ke6 {[%clk 0:00:01]} 33. Bxd8 {[%clk 0:00:24]}  Bxd8 {[%clk 0:00:01]} 34. Rd4 {[%clk 0:00:22]}  Kd7 {[%clk 0:00:01]} 35. Rxb4 {[%clk 0:00:21]}  Kxd6 {[%clk 0:00:01]} 36. Rd4+ {[%clk 0:00:21]}  Kc7 {[%clk 0:00:02]} 37. Rxd8 {[%clk 0:00:20]}  Kxd8 {[%clk 0:00:03]} 38. Kg2 {[%clk 0:00:20]}  Kc7 {[%clk 0:00:04]} 39. Kf3 {[%clk 0:00:20]}  Kd6 {[%clk 0:00:02]} 40. Ke4 {[%clk 0:00:20]} 1-0


[Site "https://www.chess.com"]

[Event "Titled Tuesday Blitz November 14 Late 2023"]
[White "Weimarraner"]
[Black "Pakleza, Zbigniew"]
[BlackFideId "1119290"]
[WhiteElo "2528"]
[BlackElo "2826"]
[Result "1/2-1/2"]
[Round "3"]
[TimeControl "180+1"]
[Date "2023.11.14"]
[WhiteClock "0:00:06"]
[BlackClock "0:00:04"]
[Board "31"]

1. d4 {[%clk 0:03:00]}  d6 {[%clk 0:03:00]} 2. Nf3 {[%clk 0:03:00]}  Bg4 {[%clk 0:02:59]} 3. e3 {[%clk 0:03:01]}  Nf6 {[%clk 0:03:00]} 4. h3 {[%clk 0:03:02]}  Bh5 {[%clk 0:02:59]} 5. g4 {[%clk 0:03:02]}  Bg6 {[%clk 0:03:00]} 6. Nh4 {[%clk 0:03:00]}  Be4 {[%clk 0:02:57]} 7. f3 {[%clk 0:03:00]}  Bc6 {[%clk 0:02:58]} 8. Ng2 {[%clk 0:02:49]}  e6 {[%clk 0:02:42]} 9. c4 {[%clk 0:02:48]}  b6 {[%clk 0:02:41]} 10. Nc3 {[%clk 0:02:49]}  Be7 {[%clk 0:02:40]} 11. b3 {[%clk 0:02:41]}  d5 {[%clk 0:02:16]} 12. Bd3 {[%clk 0:02:26]}  Nbd7 {[%clk 0:02:09]} 13. a3 {[%clk 0:02:18]}  O-O {[%clk 0:02:07]} 14. e4 {[%clk 0:02:12]}  dxe4 {[%clk 0:02:02]} 15. fxe4 {[%clk 0:02:13]}  e5 {[%clk 0:02:02]} 16. d5 {[%clk 0:02:13]}  Bb7 {[%clk 0:02:01]} 17. Be3 {[%clk 0:02:08]}  a5 {[%clk 0:01:53]} 18. O-O {[%clk 0:02:05]}  Ne8 {[%clk 0:01:41]} 19. Bf2 {[%clk 0:01:58]}  Bc5 {[%clk 0:01:35]} 20. Ne3 {[%clk 0:01:56]}  g6 {[%clk 0:01:29]} 21. Na4 {[%clk 0:01:48]}  Bd4 {[%clk 0:01:27]} 22. Ra2 {[%clk 0:01:47]}  Nd6 {[%clk 0:01:23]} 23. Kg2 {[%clk 0:01:35]}  Nc5 {[%clk 0:01:20]} 24. Nxc5 {[%clk 0:01:35]}  bxc5 {[%clk 0:01:21]} 25. Re2 {[%clk 0:01:22]}  Bc8 {[%clk 0:01:12]} 26. a4 {[%clk 0:01:22]}  Rb8 {[%clk 0:01:02]} 27. Bc2 {[%clk 0:01:22]}  Bd7 {[%clk 0:00:56]} 28. Qd2 {[%clk 0:01:20]}  Ra8 {[%clk 0:00:54]} 29. Nd1 {[%clk 0:01:19]}  Kg7 {[%clk 0:00:50]} 30. Be3 {[%clk 0:01:19]}  Kg8 {[%clk 0:00:25]} 31. Bh6 {[%clk 0:01:15]}  f6 {[%clk 0:00:25]} 32. Bxf8 {[%clk 0:01:10]}  Qxf8 {[%clk 0:00:25]} 33. Nc3 {[%clk 0:01:01]}  Qg7 {[%clk 0:00:23]} 34. Ree1 {[%clk 0:01:01]}  Kh8 {[%clk 0:00:19]} 35. Kh1 {[%clk 0:01:01]}  Rf8 {[%clk 0:00:17]} 36. Ne2 {[%clk 0:00:59]}  Ra8 {[%clk 0:00:13]} 37. Nxd4 {[%clk 0:00:59]}  cxd4 {[%clk 0:00:14]} 38. Qf2 {[%clk 0:00:56]}  Rf8 {[%clk 0:00:12]} 39. c5 {[%clk 0:00:55]}  Ne8 {[%clk 0:00:07]} 40. c6 {[%clk 0:00:55]}  Bc8 {[%clk 0:00:07]} 41. Bd3 {[%clk 0:00:54]}  Nd6 {[%clk 0:00:04]} 42. Qg3 {[%clk 0:00:54]}  Re8 {[%clk 0:00:03]} 43. Rf3 {[%clk 0:00:53]}  Rf8 {[%clk 0:00:02]} 44. Ref1 {[%clk 0:00:54]}  g5 {[%clk 0:00:03]} 45. Qf2 {[%clk 0:00:53]}  Ne8 {[%clk 0:00:02]} 46. Qd2 {[%clk 0:00:52]}  h5 {[%clk 0:00:02]} 47. Rg3 {[%clk 0:00:47]}  Nd6 {[%clk 0:00:02]} 48. Qf2 {[%clk 0:00:44]}  Kh7 {[%clk 0:00:01]} 49. Kg2 {[%clk 0:00:37]}  hxg4 {[%clk 0:00:01]} 50. hxg4 {[%clk 0:00:37]}  Kg6 {[%clk 0:00:02]} 51. Rh1 {[%clk 0:00:37]}  Rh8 {[%clk 0:00:03]} 52. Rxh8 {[%clk 0:00:37]}  Qxh8 {[%clk 0:00:04]} 53. Rh3 {[%clk 0:00:26]}  Qf8 {[%clk 0:00:04]} 54. Qg3 {[%clk 0:00:26]}  Nf7 {[%clk 0:00:03]} 55. Be2 {[%clk 0:00:20]}  Qb4 {[%clk 0:00:02]} 56. Qh2 {[%clk 0:00:19]}  Qf8 {[%clk 0:00:01]} 57. Rh7 {[%clk 0:00:17]}  Nh6 {[%clk 0:00:02]} 58. Rxh6+ {[%clk 0:00:14]}  Qxh6 {[%clk 0:00:02]} 59. Qxh6+ {[%clk 0:00:14]}  Kxh6 {[%clk 0:00:02]} 60. Kf3 {[%clk 0:00:13]}  Kg7 {[%clk 0:00:03]} 61. Bc4 {[%clk 0:00:11]}  Kf8 {[%clk 0:00:03]} 62. Be2 {[%clk 0:00:10]}  Ke7 {[%clk 0:00:03]} 63. Kf2 {[%clk 0:00:10]}  Kd6 {[%clk 0:00:03]} 64. Ke1 {[%clk 0:00:11]}  Kc5 {[%clk 0:00:04]} 65. Kd2 {[%clk 0:00:11]}  Kb4 {[%clk 0:00:04]} 66. Kc2 {[%clk 0:00:12]}  Ka3 {[%clk 0:00:04]} 67. Bf3 {[%clk 0:00:11]}  d3+ {[%clk 0:00:03]} 68. Kxd3 {[%clk 0:00:11]}  Kxb3 {[%clk 0:00:04]} 69. Bd1+ {[%clk 0:00:11]}  Kb4 {[%clk 0:00:04]} 70. Ke3 {[%clk 0:00:10]}  Ba6 {[%clk 0:00:04]} 71. Be2 {[%clk 0:00:07]}  Bc8 {[%clk 0:00:04]} 72. Bb5 {[%clk 0:00:07]}  Kc3 {[%clk 0:00:04]} 73. Be2 {[%clk 0:00:06]}  Kb4 {[%clk 0:00:04]} 74. Bd1 {[%clk 0:00:06]}  Ba6 {[%clk 0:00:04]} 75. Be2 {[%clk 0:00:06]}  Bc8 {[%clk 0:00:04]} 1/2-1/2


[Site "https://www.chess.com"]

[Event "Titled Tuesday Blitz November 14 Late 2023"]
[White "Ghasi, Ameet K"]
[Black "Spichkin, Alexander"]
[WhiteFideId "409200"]
[BlackFideId "4144074"]
[WhiteElo "2812"]
[BlackElo "2345"]
[Result "1-0"]
[Round "3"]
[TimeControl "180+1"]
[Date "2023.11.14"]
[WhiteClock "0:01:25"]
[BlackClock "0:01:03"]
[Board "35"]

1. b3 {[%clk 0:03:00]}  d6 {[%clk 0:02:57]} 2. Bb2 {[%clk 0:03:01]}  c6 {[%clk 0:02:57]} 3. d4 {[%clk 0:02:59]}  Nd7 {[%clk 0:02:58]} 4. e4 {[%clk 0:02:59]}  h6 {[%clk 0:02:58]} 5. f4 {[%clk 0:02:59]}  g5 {[%clk 0:02:58]} 6. f5 {[%clk 0:02:59]}  Bg7 {[%clk 0:02:58]} 7. Bd3 {[%clk 0:02:57]}  Qa5+ {[%clk 0:02:56]} 8. c3 {[%clk 0:02:56]}  Ngf6 {[%clk 0:02:56]} 9. Nf3 {[%clk 0:02:53]}  Nf8 {[%clk 0:02:56]} 10. O-O {[%clk 0:02:52]}  Qb6 {[%clk 0:02:50]} 11. Nbd2 {[%clk 0:02:49]}  Bd7 {[%clk 0:02:46]} 12. e5 {[%clk 0:02:34]}  dxe5 {[%clk 0:02:44]} 13. Nc4 {[%clk 0:02:28]}  Qc7 {[%clk 0:02:39]} 14. dxe5 {[%clk 0:02:19]}  Ng4 {[%clk 0:02:39]} 15. Qe2 {[%clk 0:02:15]}  b5 {[%clk 0:02:39]} 16. Nd6+ {[%clk 0:02:12]}  Kd8 {[%clk 0:02:34]} 17. Nxf7+ {[%clk 0:02:11]}  Kc8 {[%clk 0:02:34]} 18. h3 {[%clk 0:02:07]}  Qb6+ {[%clk 0:02:11]} 19. Nd4 {[%clk 0:02:06]}  Nxe5 {[%clk 0:01:58]} 20. Nxe5 {[%clk 0:02:06]}  c5 {[%clk 0:01:59]} 21. Rac1 {[%clk 0:01:52]}  cxd4 {[%clk 0:01:45]} 22. cxd4+ {[%clk 0:01:53]}  Kb8 {[%clk 0:01:45]} 23. Kh1 {[%clk 0:01:52]}  a6 {[%clk 0:01:38]} 24. Nxd7+ {[%clk 0:01:34]}  Nxd7 {[%clk 0:01:37]} 25. Qxe7 {[%clk 0:01:34]}  Bxd4 {[%clk 0:01:30]} 26. Ba3 {[%clk 0:01:24]}  Ra7 {[%clk 0:01:23]} 27. Bd6+ {[%clk 0:01:24]}  Ka8 {[%clk 0:01:20]} 28. Be4+ {[%clk 0:01:23]}  Rb7 {[%clk 0:01:20]} 29. Qxd7 {[%clk 0:01:22]}  Be3 {[%clk 0:01:14]} 30. Rc8+ {[%clk 0:01:15]}  Rxc8 {[%clk 0:01:14]} 31. Qxc8+ {[%clk 0:01:16]}  Ka7 {[%clk 0:01:14]} 32. Qxb7+ {[%clk 0:01:17]}  Qxb7 {[%clk 0:01:14]} 33. Bxb7 {[%clk 0:01:17]}  Kxb7 {[%clk 0:01:15]} 34. f6 {[%clk 0:01:18]}  Kc6 {[%clk 0:01:14]} 35. f7 {[%clk 0:01:18]}  Kxd6 {[%clk 0:01:15]} 36. f8=Q+ {[%clk 0:01:19]}  Kd5 {[%clk 0:01:16]} 37. Qf7+ {[%clk 0:01:19]}  Ke4 {[%clk 0:01:16]} 38. Qf5+ {[%clk 0:01:20]}  Kd4 {[%clk 0:01:16]} 39. Rd1+ {[%clk 0:01:20]}  Kc3 {[%clk 0:01:16]} 40. Qd3+ {[%clk 0:01:21]}  Kb2 {[%clk 0:01:17]} 41. Qxe3 {[%clk 0:01:22]}  g4 {[%clk 0:01:16]} 42. Qc1+ {[%clk 0:01:23]}  Kxa2 {[%clk 0:01:06]} 43. Rd2+ {[%clk 0:01:24]}  Kxb3 {[%clk 0:01:03]} 44. Rd3+ {[%clk 0:01:23]}  Kb4 {[%clk 0:01:03]} 45. Qa3+ {[%clk 0:01:24]}  Kc4 {[%clk 0:01:03]} 46. Qc3# {[%clk 0:01:25]} 1-0


[Site "https://www.chess.com"]